[Event "Championnat du monde jeunes U12F"]
[Date "2024.11.24"]
[White "Liu, Lillian Yu-Ning"]
[Black "Dzafic, Merjem"]
[WhiteElo "1456"]
[BlackElo "1568"]
[Round "9.41"]
[Result "1/2-1/2"]
[TimeControl "5400+30"]

1. e4 {[%clk 1:30:58]} 1... c6 {[%clk 1:30:51]} 2. d4 {[%clk 1:31:20]} 2... d5
{[%clk 1:31:15]} 3. exd5 {[%clk 1:31:42]} 3... cxd5 {[%clk 1:31:32]} 4. Nf3
{[%clk 1:32:03]} 4... Nc6 {[%clk 1:31:52]} 5. Bf4 {[%clk 1:32:16]} 5... Bg4
{[%clk 1:31:34]} 6. c3 {[%clk 1:32:31]} 6... Nf6 {[%clk 1:31:19]} 7. h3 {[%clk
1:32:41]} 7... Bh5 {[%clk 1:31:17]} 8. Nbd2 {[%clk 1:02:29]} 8... e6 {[%clk
1:23:32]} 9. Qb3 {[%clk 0:59:31]} 9... Qb6 {[%clk 1:15:28]} 10. Qxb6 {[%clk
0:53:28]} 10... axb6 {[%clk 1:15:26]} 11. Bc7 {[%clk 0:44:05]} 11... Nd7 {[%clk
1:11:16]} 12. Bd3 {[%clk 0:32:25]} 12... Be7 {[%clk 0:57:56]} 13. O-O {[%clk
0:29:33]} 13... O-O {[%clk 0:56:43]} 14. Rfe1 {[%clk 0:16:08]} 14... Rac8 {[%clk
0:42:14]} 15. Bf4 {[%clk 0:15:41]} 15... Rfd8 {[%clk 0:36:33]} 16. Ne5 {[%clk
0:11:05]} 16... Ncxe5 {[%clk 0:34:46]} 17. dxe5 {[%clk 0:10:25]} 17... Rc7
{[%clk 0:22:30]} 18. Nb3 {[%clk 0:07:02]} 18... Nc5 {[%clk 0:20:37]} 19. Bc2
{[%clk 0:05:10]} 19... Nxb3 {[%clk 0:19:56]} 20. Bxb3 {[%clk 0:05:29]} 20...
Rdc8 {[%clk 0:18:52]} 21. Be3 {[%clk 0:04:33]} 21... Bc5 {[%clk 0:19:01]} 22.
Bf4 {[%clk 0:04:43]} 22... b5 {[%clk 0:16:44]} 23. a3 {[%clk 0:04:09]} 23... d4
{[%clk 0:16:45]} 24. cxd4 {[%clk 0:03:57]} 24... Bxd4 {[%clk 0:16:43]} 25. Ra2
{[%clk 0:03:55]} 25... h6 {[%clk 0:13:51]} 26. Re4 {[%clk 0:03:18]} 26... Bc5
{[%clk 0:13:27]} 27. Re1 {[%clk 0:03:22]} 27... g5 {[%clk 0:12:17]} 28. Bd2
{[%clk 0:03:20]} 1/2-1/2

[Variant "Standard"]
[Site "Europe Echecs"]

[Event "Championnat du monde jeunes U12F"]
[Date "2024.11.25"]
[White "Xue, Tianhao"]
[Black "Amanzhol, Khanzada"]
[WhiteElo "1835"]
[BlackElo "1780"]
[Round "10.1"]
[Result "1/2-1/2"]
[TimeControl "5400+30"]

1. e4 {[%clk 1:30:58]} 1... c5 {[%clk 1:30:34]} 2. Nf3 {[%clk 1:31:23]} 2... Nc6
{[%clk 1:31:00]} 3. Bb5 {[%clk 1:31:47]} 3... g6 {[%clk 1:30:57]} 4. Bxc6 {[%clk
1:32:13]} 4... dxc6 {[%clk 1:31:22]} 5. d3 {[%clk 1:32:39]} 5... Bg7 {[%clk
1:31:22]} 6. h3 {[%clk 1:33:04]} 6... e5 {[%clk 1:31:19]} 7. Be3 {[%clk
1:33:30]} 7... Qe7 {[%clk 1:31:06]} 8. O-O {[%clk 1:33:12]} 8... Nf6 {[%clk
1:29:02]} 9. Nc3 {[%clk 1:33:11]} 9... Nd7 {[%clk 1:20:51]} 10. Qd2 {[%clk
1:33:31]} 10... Nf8 {[%clk 1:20:06]} 11. Bh6 {[%clk 1:31:49]} 11... f6 {[%clk
1:20:26]} 12. Bxg7 {[%clk 1:31:07]} 12... Qxg7 {[%clk 1:20:53]} 13. Nh2 {[%clk
1:31:04]} 13... Ne6 {[%clk 1:20:58]} 14. Ne2 {[%clk 1:31:11]} 14... g5 {[%clk
1:14:59]} 15. Ng4 {[%clk 1:29:05]} 15... Nf4 {[%clk 1:11:22]} 16. Ne3 {[%clk
1:28:42]} 16... Nxe2+ {[%clk 1:08:39]} 17. Qxe2 {[%clk 1:29:04]} 17... h5 {[%clk
1:09:06]} 18. Nc4 {[%clk 1:26:22]} 18... Qe7 {[%clk 1:08:56]} 19. a4 {[%clk
1:21:23]} 19... Be6 {[%clk 1:09:00]} 20. Ne3 {[%clk 1:21:04]} 20... O-O-O {[%clk
1:05:41]} 21. Nf5 {[%clk 1:14:00]} 21... Bxf5 {[%clk 1:05:45]} 22. exf5 {[%clk
1:14:22]} 22... Qd7 {[%clk 1:05:19]} 23. Qe4 {[%clk 1:12:31]} 23... Qd4 {[%clk
1:05:10]} 24. Qxd4 {[%clk 1:02:46]} 24... Rxd4 {[%clk 1:05:33]} 25. g3 {[%clk
0:59:13]} 25... Rhd8 {[%clk 1:03:34]} 26. Rfe1 {[%clk 0:51:50]} 26... Kc7 {[%clk
0:57:55]} 27. b3 {[%clk 0:52:02]} 27... Kb6 {[%clk 0:55:06]} 28. f3 {[%clk
0:50:23]} 28... h4 {[%clk 0:54:38]} 29. g4 {[%clk 0:50:43]} 29... a5 {[%clk
0:52:39]} 30. Kf2 {[%clk 0:50:39]} 30... Ka6 {[%clk 0:52:44]} 31. Ra2 {[%clk
0:50:41]} 31... Kb6 {[%clk 0:47:51]} 32. Ke3 {[%clk 0:49:03]} 32... Kc7 {[%clk
0:46:37]} 33. Rd1 {[%clk 0:48:54]} 33... c4 {[%clk 0:45:00]} 34. bxc4 Rxc4
{[%clk 0:45:06]} 35. Rb1 {[%clk 0:48:43]} 35... Rcd4 {[%clk 0:44:19]} 36. Rb3
{[%clk 0:43:59]} 36... R8d7 {[%clk 0:43:06]} 37. Rab2 {[%clk 0:40:15]} 37... Kc8
{[%clk 0:43:01]} 38. Ra3 {[%clk 0:39:47]} 38... Kc7 {[%clk 0:42:57]} 39. Rb1
{[%clk 0:39:34]} 39... Kb8 {[%clk 0:41:47]} 40. Rd1 {[%clk 0:38:13]} 40... Ka7
{[%clk 0:41:29]} 41. c3 {[%clk 0:37:55]} 41... R4d5 {[%clk 0:41:16]} 42. Ke4
1/2-1/2

[Variant "Standard"]
[Site "Europe Echecs"]

[Event "Championnat du monde jeunes U12F"]
[Date "2024.11.25"]
[White "Buyankhishig, Batpelden"]
[Black "Venskaya, Nika"]
[WhiteElo "1867"]
[BlackElo "1871"]
[Round "10.2"]
[Result "1-0"]
[TimeControl "5400+30"]

1. d4 {[%clk 1:27:37]} 1... Nf6 {[%clk 1:30:53]} 2. c4 {[%clk 1:27:44]} 2... g6
{[%clk 1:31:16]} 3. Nc3 {[%clk 1:27:57]} 3... Bg7 {[%clk 1:31:12]} 4. e4 {[%clk
1:28:10]} 4... d6 {[%clk 1:31:37]} 5. Nf3 {[%clk 1:28:29]} 5... O-O {[%clk
1:31:23]} 6. Be2 {[%clk 1:28:24]} 6... c6 {[%clk 1:31:06]} 7. O-O {[%clk
1:28:02]} 7... Qc7 {[%clk 1:30:47]} 8. h3 {[%clk 1:27:20]} 8... e5 {[%clk
1:26:05]} 9. c5 {[%clk 1:26:18]} 9... dxc5 {[%clk 1:24:12]} 10. dxe5 {[%clk
1:25:54]} 10... Nfd7 {[%clk 1:11:36]} 11. e6 {[%clk 1:24:20]} 11... fxe6 {[%clk
1:10:24]} 12. Be3 {[%clk 1:23:57]} 12... b6 {[%clk 1:06:29]} 13. Ng5 {[%clk
1:22:40]} 13... Nf6 {[%clk 0:57:25]} 14. Qb3 {[%clk 1:20:42]} 14... Qe7 {[%clk
0:56:30]} 15. Bc4 {[%clk 1:19:57]} 15... h6 {[%clk 0:42:05]} 16. Bxe6+ {[%clk
0:58:00]} 16... Kh8 {[%clk 0:37:33]} 17. Bxc8 {[%clk 0:56:35]} 17... Rxc8 {[%clk
0:31:44]} 18. e5 {[%clk 0:49:39]} 18... Nfd7 {[%clk 0:16:20]} 19. Nf7+ {[%clk
0:49:29]} 19... Kh7 {[%clk 0:14:43]} 20. f4 {[%clk 0:46:27]} 20... Rf8 {[%clk
0:10:49]} 21. Nd6 {[%clk 0:37:51]} 21... Na6 {[%clk 0:07:34]} 22. Rad1 {[%clk
0:37:14]} 22... Nc7 {[%clk 0:07:36]} 23. Qa4 {[%clk 0:32:45]} 23... Nb8 {[%clk
0:02:09]} 24. Qe4 {[%clk 0:32:17]} 24... Nba6 {[%clk 0:00:37]} 25. Qxc6 {[%clk
0:31:34]} 25... Rad8 {[%clk 0:00:36]} 26. Qe4 {[%clk 0:30:58]} 26... Qe6 {[%clk
0:00:33]} 27. Bf2 {[%clk 0:25:26]} 27... Nb8 {[%clk 0:00:35]} 28. Bg3 {[%clk
0:24:52]} 28... Kg8 {[%clk 0:00:39]} 29. Nb7 {[%clk 0:22:06]} 29... Rxd1 {[%clk
0:00:33]} 30. Rxd1 {[%clk 0:22:35]} 30... Ne8 {[%clk 0:00:38]} 31. Nd8 {[%clk
0:21:34]} 31... Qf5 {[%clk 0:00:46]} 32. Qb7 {[%clk 0:21:36]} 32... g5 {[%clk
0:00:31]} 33. fxg5 {[%clk 0:20:02]} 33... Qxg5 {[%clk 0:00:37]} 34. Kh2 {[%clk
0:19:10]} 34... Rf5 {[%clk 0:00:31]} 35. Qxb8 {[%clk 0:16:08]} 35... Bxe5 {[%clk
0:00:47]} 36. Bxe5 {[%clk 0:16:21]} 36... Rxe5 {[%clk 0:01:10]} 37. Rd3 {[%clk
0:15:11]} 37... Kh7 {[%clk 0:00:31]} 38. Rg3 {[%clk 0:15:08]} 38... Qf6 {[%clk
0:00:43]} 39. Rf3 {[%clk 0:11:30]} 39... Rf5 {[%clk 0:00:41]} 40. Qb7+ {[%clk
0:10:05]} 40... Kh8 {[%clk 0:00:32]} 41. Nf7+ {[%clk 0:10:13]} 41... Kg7 {[%clk
0:00:31]} 42. Rxf5 {[%clk 0:10:31]} 42... Qe6 {[%clk 0:00:31]} 43. Nd8+ {[%clk
0:10:41]} 43... Kg6 {[%clk 0:00:51]} 44. Nxe6 {[%clk 0:11:06]} 44... a5 {[%clk
0:01:12]} 45. Qf7# {[%clk 0:11:29]} 1-0

[Variant "Standard"]
[Site "Europe Echecs"]

[Event "Championnat du monde jeunes U12F"]
[Date "2024.11.25"]
[White "Pratitee Bordoloi"]
[Black "Hanya Shah"]
[WhiteElo "1929"]
[BlackElo "1888"]
[Round "10.3"]
[Result "1/2-1/2"]
[TimeControl "5400+30"]

1. e4 {[%clk 1:30:56]} 1... c6 {[%clk 1:30:53]} 2. d4 {[%clk 1:31:15]} 2... d5
{[%clk 1:31:18]} 3. exd5 {[%clk 1:31:30]} 3... cxd5 {[%clk 1:31:31]} 4. c4
{[%clk 1:31:48]} 4... e6 {[%clk 1:31:41]} 5. Nc3 {[%clk 1:31:59]} 5... Nf6
{[%clk 1:32:06]} 6. Nf3 {[%clk 1:32:12]} 6... Bb4 {[%clk 1:32:27]} 7. Bd3 {[%clk
1:31:00]} 7... dxc4 {[%clk 1:32:49]} 8. Bxc4 {[%clk 1:31:21]} 8... O-O {[%clk
1:32:47]} 9. O-O {[%clk 1:31:41]} 9... b6 {[%clk 1:32:32]} 10. a3 {[%clk
1:30:55]} 10... Bxc3 {[%clk 1:25:36]} 11. bxc3 {[%clk 1:31:08]} 11... Bb7 {[%clk
1:25:53]} 12. Bg5 {[%clk 1:28:30]} 12... Nbd7 {[%clk 1:26:12]} 13. Ba2 {[%clk
1:21:55]} 13... Qc7 {[%clk 1:18:11]} 14. c4 {[%clk 1:16:26]} 14... Qd6 {[%clk
1:17:13]} 15. Qd3 {[%clk 0:56:59]} 15... Rfe8 {[%clk 0:59:34]} 16. Bxf6 {[%clk
0:45:24]} 16... Nxf6 {[%clk 0:56:15]} 17. Ne5 {[%clk 0:44:04]} 17... Rad8 {[%clk
0:55:31]} 18. Rad1 {[%clk 0:41:25]} 18... Nd7 {[%clk 0:37:17]} 19. f4 {[%clk
0:35:56]} 19... f5 {[%clk 0:29:37]} 20. Qh3 {[%clk 0:20:14]} 20... Nxe5 {[%clk
0:23:11]} 21. fxe5 {[%clk 0:20:29]} 21... Qe7 {[%clk 0:22:07]} 22. Qg3 {[%clk
0:15:26]} 22... Rd7 {[%clk 0:19:12]} 23. Rd2 {[%clk 0:11:59]} 23... Red8 {[%clk
0:18:42]} 24. Rfd1 {[%clk 0:11:30]} 24... Kh8 {[%clk 0:17:46]} 25. Qe3 {[%clk
0:09:51]} 25... Be4 {[%clk 0:16:48]} 26. Bb1 {[%clk 0:06:44]} 26... Bxb1 {[%clk
0:13:12]} 27. Rxb1 {[%clk 0:07:05]} 27... Rc7 {[%clk 0:13:22]} 28. Qd3 {[%clk
0:05:29]} 28... Rdc8 {[%clk 0:11:06]} 29. Rc1 {[%clk 0:04:54]} 29... b5 {[%clk
0:09:32]} 30. c5 {[%clk 0:04:01]} 30... a6 {[%clk 0:09:54]} 31. Ra1 {[%clk
0:03:06]} 31... Rd8 {[%clk 0:07:51]} 32. Qe3 {[%clk 0:02:07]} 32... Qd7 {[%clk
0:06:30]} 33. Rad1 {[%clk 0:01:55]} 33... Qd5 {[%clk 0:06:08]} 34. Qf3 {[%clk
0:01:19]} 34... Qc4 {[%clk 0:05:48]} 35. h3 {[%clk 0:00:49]} 35... a5 {[%clk
0:05:18]} 36. Kh2 {[%clk 0:00:43]} 36... h6 {[%clk 0:04:23]} 37. Qe3 {[%clk
0:00:38]} 37... Rd5 {[%clk 0:04:02]} 38. Rd3 {[%clk 0:00:47]} 38... b4 {[%clk
0:04:08]} 39. axb4 {[%clk 0:00:47]} 39... axb4 {[%clk 0:04:33]} 40. Rc1 {[%clk
0:00:56]} 40... Qb5 {[%clk 0:03:57]} 41. Rb3 {[%clk 0:01:07]} 41... Rcd7 {[%clk
0:03:30]} 42. c6 {[%clk 0:00:53]} 42... Rc7 {[%clk 0:03:25]} 43. Rcb1 {[%clk
0:01:02]} 43... Qxc6 {[%clk 0:03:18]} 44. Rxb4 {[%clk 0:01:27]} 44... Qd7 {[%clk
0:03:10]} 45. R1b2 {[%clk 0:01:18]} 45... Kh7 {[%clk 0:02:57]} 46. Rd2 {[%clk
0:00:59]} 46... Rb7 {[%clk 0:01:45]} 47. Rxb7 {[%clk 0:00:54]} 47... Qxb7 {[%clk
0:02:09]} 48. Qd3 {[%clk 0:01:01]} 48... Kg8 {[%clk 0:01:10]} 49. Rc2 {[%clk
0:01:06]} 49... Qd7 {[%clk 0:01:25]} 50. Rd2 {[%clk 0:01:20]} 50... Qa4 {[%clk
0:01:23]} 51. Qc3 {[%clk 0:01:25]} 51... Qd7 {[%clk 0:01:27]} 52. Qd3 {[%clk
0:01:45]} 52... Qe7 {[%clk 0:01:15]} 53. Qc3 {[%clk 0:01:33]} 53... Qd7 {[%clk
0:00:58]} 54. Qd3 {[%clk 0:02:00]} 54... Qd8 {[%clk 0:01:21]} 55. Qa6 {[%clk
0:01:21]} 55... Qd7 {[%clk 0:01:09]} 56. Qd3 {[%clk 0:01:38]} 56... Qf7 {[%clk
0:01:02]} 57. Qc3 {[%clk 0:01:47]} 57... Qd7 {[%clk 0:01:00]} 58. Qd3 {[%clk
0:02:12]} 1/2-1/2

[Variant "Standard"]
[Site "Europe Echecs"]

[Event "Championnat du monde jeunes U12F"]
[Date "2024.11.25"]
[White "Mozolevskaya, Tatyana Nik"]
[Black "Tong Thai Hoang An"]
[WhiteElo "1775"]
[BlackElo "1869"]
[Round "10.4"]
[Result "0-1"]
[TimeControl "5400+30"]

1. Nf3 {[%clk 1:30:59]} 1... d5 {[%clk 1:30:36]} 2. g3 {[%clk 1:31:25]} 2... c5
{[%clk 1:30:51]} 3. Bg2 {[%clk 1:31:49]} 3... f6 {[%clk 1:31:00]} 4. e3 {[%clk
1:23:22]} 4... e5 {[%clk 1:23:25]} 5. c4 {[%clk 1:21:47]} 5... d4 {[%clk
1:18:00]} 6. exd4 {[%clk 1:01:48]} 6... cxd4 {[%clk 1:18:02]} 7. O-O {[%clk
1:01:39]} 7... Nc6 {[%clk 1:12:37]} 8. Nh4 {[%clk 0:57:47]} 8... Be6 {[%clk
1:08:38]} 9. d3 {[%clk 0:57:11]} 9... Qd7 {[%clk 1:05:57]} 10. Qe2 {[%clk
0:55:38]} 10... O-O-O {[%clk 1:02:08]} 11. a3 {[%clk 0:51:50]} 11... Nge7 {[%clk
0:58:15]} 12. b4 {[%clk 0:50:37]} 12... g5 {[%clk 0:51:50]} 13. Nf3 {[%clk
0:50:53]} 13... Ng6 {[%clk 0:52:04]} 14. b5 {[%clk 0:48:49]} 14... Nb8 {[%clk
0:52:05]} 15. Nbd2 {[%clk 0:43:55]} 15... h5 {[%clk 0:47:08]} 16. Ne4 {[%clk
0:41:04]} 16... Be7 {[%clk 0:46:29]} 17. Ne1 {[%clk 0:25:37]} 17... g4 {[%clk
0:31:26]} 18. f3 {[%clk 0:18:40]} 18... Rdf8 {[%clk 0:26:09]} 19. Nf2 {[%clk
0:15:10]} 19... f5 {[%clk 0:22:37]} 20. Bd2 {[%clk 0:14:29]} 20... Rfg8 {[%clk
0:14:58]} 21. Nc2 {[%clk 0:13:15]} 21... Bd6 {[%clk 0:13:23]} 22. Rae1 {[%clk
0:12:49]} 22... Bc7 {[%clk 0:12:28]} 23. Bb4 {[%clk 0:11:20]} 23... h4 {[%clk
0:11:55]} 24. fxg4 {[%clk 0:10:42]} 24... hxg3 {[%clk 0:11:15]} 25. gxf5 {[%clk
0:09:54]} 25... Nf4 26. Qe4 {[%clk 0:08:14]} 26... gxf2+ {[%clk 0:07:47]} 27.
Rxf2 {[%clk 0:08:31]} 27... Bxf5 {[%clk 0:05:04]} 28. Qxb7+ {[%clk 0:08:40]}
28... Kd8 {[%clk 0:05:32]} 29. Rxf4 {[%clk 0:08:36]} 29... Qh7 {[%clk 0:03:03]}
30. Rxd4+ {[%clk 0:05:36]} 30... Bd7 {[%clk 0:02:51]} 31. Bd6 {[%clk 0:02:26]}
31... Rxg2+ {[%clk 0:01:29]} 32. Kxg2 {[%clk 0:01:09]} 32... Qxh2+ {[%clk
0:01:51]} 33. Kf1 {[%clk 0:01:30]} 33... Bh3+ {[%clk 0:02:11]} 0-1

[Variant "Standard"]
[Site "Europe Echecs"]

[Event "Championnat du monde jeunes U12F"]
[Date "2024.11.25"]
[White "Pavithra R V"]
[Black "Li, Sophie"]
[WhiteElo "1854"]
[BlackElo "1798"]
[Round "10.5"]
[Result "0-1"]
[TimeControl "5400+30"]

1. e4 {[%clk 1:30:58]} 1... e6 {[%clk 1:30:51]} 2. d4 {[%clk 1:31:19]} 2... d5
{[%clk 1:31:16]} 3. e5 {[%clk 1:31:41]} 3... c5 {[%clk 1:31:33]} 4. c3 {[%clk
1:31:59]} 4... Nc6 {[%clk 1:31:50]} 5. Nf3 {[%clk 1:32:22]} 5... Nge7 {[%clk
1:32:04]} 6. Bb5 {[%clk 1:30:57]} 6... Bd7 {[%clk 1:29:28]} 7. Bxc6 {[%clk
1:30:44]} 7... Nxc6 {[%clk 1:29:07]} 8. O-O {[%clk 1:30:28]} 8... cxd4 {[%clk
1:27:22]} 9. cxd4 {[%clk 1:30:49]} 9... Be7 {[%clk 1:26:48]} 10. Nc3 {[%clk
1:28:55]} 10... O-O {[%clk 1:25:19]} 11. h3 {[%clk 1:28:09]} 11... Rc8 {[%clk
1:23:56]} 12. Nh2 {[%clk 1:27:37]} 12... Re8 {[%clk 1:19:44]} 13. Be3 {[%clk
1:26:38]} 13... Na5 {[%clk 1:18:16]} 14. f4 {[%clk 1:24:01]} 14... Nc4 {[%clk
1:18:02]} 15. Bc1 {[%clk 1:20:30]} 15... Qb6 {[%clk 1:15:31]} 16. b3 {[%clk
1:13:11]} 16... Nxe5 {[%clk 1:11:38]} 17. fxe5 {[%clk 1:02:14]} 17... Rxc3
{[%clk 1:11:08]} 18. Bb2 {[%clk 1:01:25]} 18... Rcc8 {[%clk 1:10:20]} 19. Qh5
{[%clk 0:52:31]} 19... f5 {[%clk 1:06:04]} 20. exf6 {[%clk 0:37:04]} 20... Bxf6
{[%clk 1:06:18]} 21. Kh1 {[%clk 0:34:56]} 21... Rf8 {[%clk 0:58:04]} 22. Ba3
{[%clk 0:31:51]} 22... Rf7 {[%clk 0:57:13]} 23. Bc5 {[%clk 0:31:31]} 23... Qd8
{[%clk 0:56:24]} 24. Ng4 {[%clk 0:31:22]} 24... Be8 {[%clk 0:53:58]} 25. Nxf6+
{[%clk 0:28:30]} 25... Rxf6 {[%clk 0:53:17]} 26. Qg4 {[%clk 0:28:48]} 26... b6
{[%clk 0:50:43]} 27. Ba3 {[%clk 0:28:53]} 27... Bb5 {[%clk 0:49:42]} 28. Rfc1
{[%clk 0:24:40]} 28... Bd7 {[%clk 0:48:06]} 29. Rxc8 {[%clk 0:22:50]} 29... Qxc8
{[%clk 0:48:06]} 30. Rc1 {[%clk 0:21:53]} 30... Qb8 {[%clk 0:44:58]} 31. Qg5
{[%clk 0:19:47]} 31... h6 {[%clk 0:43:08]} 32. Qe3 {[%clk 0:16:46]} 32... Rf4
{[%clk 0:40:30]} 33. Qc3 {[%clk 0:13:43]} 33... Rf2 {[%clk 0:34:54]} 34. Bb2
{[%clk 0:12:40]} 34... Qf4 {[%clk 0:34:27]} 35. Ba1 {[%clk 0:07:39]} 35... Qg5
{[%clk 0:32:34]} 36. Rg1 {[%clk 0:07:26]} 36... Qf4 {[%clk 0:28:56]} 37. a3
{[%clk 0:06:46]} 37... Re2 {[%clk 0:28:35]} 38. Qd3 {[%clk 0:06:07]} 38... Re3
{[%clk 0:28:28]} 39. Qc2 {[%clk 0:06:06]} 39... Qg3 {[%clk 0:28:13]} 40. Bb2
{[%clk 0:03:59]} 40... Rxb3 {[%clk 0:27:45]} 41. Rf1 {[%clk 0:03:58]} 41... Qd3
{[%clk 0:27:21]} 42. Qxd3 {[%clk 0:04:21]} 42... Rxd3 {[%clk 0:27:48]} 43. Rf2
{[%clk 0:04:43]} 43... Bb5 {[%clk 0:26:58]} 44. Kh2 {[%clk 0:04:13]} 44... Bc4
{[%clk 0:27:07]} 45. g3 {[%clk 0:04:33]} 45... b5 {[%clk 0:26:43]} 46. Kg2
{[%clk 0:04:27]} 46... a5 {[%clk 0:27:03]} 47. Kh2 {[%clk 0:04:49]} 47... a4
{[%clk 0:26:32]} 48. Kg2 {[%clk 0:04:52]} 48... b4 {[%clk 0:26:53]} 49. axb4
{[%clk 0:04:51]} 49... a3 {[%clk 0:27:19]} 50. Ba1 {[%clk 0:05:15]} 50... Rd1
{[%clk 0:27:35]} 51. Bc3 {[%clk 0:05:35]} 51... a2 {[%clk 0:26:36]} 52. b5
{[%clk 0:05:36]} 52... a1=Q {[%clk 0:26:57]} 53. Bxa1 {[%clk 0:06:00]} 53...
Rxa1 {[%clk 0:27:24]} 54. Rb2 {[%clk 0:06:25]} 54... Ra8 {[%clk 0:27:08]} 55. b6
{[%clk 0:06:36]} 55... Kf7 {[%clk 0:27:25]} 56. Kf3 {[%clk 0:07:04]} 56... Kf6
{[%clk 0:27:30]} 57. Kf4 {[%clk 0:07:24]} 57... g5+ {[%clk 0:27:51]} 58. Kg4
{[%clk 0:07:47]} 58... Kg6 {[%clk 0:28:06]} 59. h4 {[%clk 0:08:08]} 59... h5+
{[%clk 0:28:32]} 60. Kf3 {[%clk 0:08:34]} 60... g4+ {[%clk 0:28:28]} 61. Ke3
{[%clk 0:08:40]} 61... Kf6 {[%clk 0:28:23]} 62. Rf2+ {[%clk 0:08:56]} 62... Ke7
{[%clk 0:28:40]} 63. Kf4 {[%clk 0:09:21]} 63... Rf8+ {[%clk 0:28:55]} 64. Ke3
{[%clk 0:09:49]} 64... Rxf2 {[%clk 0:29:19]} 65. Kxf2 {[%clk 0:10:12]} 65... Ba6
{[%clk 0:29:47]} 66. Ke3 {[%clk 0:10:36]} 66... Kf6 {[%clk 0:30:10]} 67. Kf4
{[%clk 0:11:01]} 67... Bb7 {[%clk 0:30:37]} 68. Ke3 {[%clk 0:11:23]} 68... e5
{[%clk 0:30:54]} 69. dxe5+ {[%clk 0:11:32]} 69... Kxe5 {[%clk 0:31:20]} 70. Kf2
{[%clk 0:11:58]} 70... d4 {[%clk 0:31:41]} 71. Kf1 {[%clk 0:12:22]} 71... Ke4
{[%clk 0:32:07]} 72. Kg2 {[%clk 0:12:46]} 72... Ke3+ {[%clk 0:32:32]} 73. Kg1
{[%clk 0:13:12]} 73... d3 {[%clk 0:32:58]} 74. Kh2 {[%clk 0:13:26]} 74... d2
{[%clk 0:33:24]} 75. Kg1 {[%clk 0:13:51]} 75... d1=Q+ {[%clk 0:33:50]} 76. Kh2
{[%clk 0:14:17]} 76... Qh1# 0-1

[Variant "Standard"]
[Site "Europe Echecs"]

[Event "Championnat du monde jeunes U12F"]
[Date "2024.11.25"]
[White "Allahverdi, Zahra"]
[Black "Tran Le Vy"]
[WhiteElo "1718"]
[BlackElo "1854"]
[Round "10.6"]
[Result "0-1"]
[TimeControl "5400+30"]

1. c4 {[%clk 1:30:57]} 1... b6 {[%clk 1:30:48]} 2. d4 {[%clk 1:31:00]} 2... Bb7
{[%clk 1:31:03]} 3. Nf3 {[%clk 1:31:18]} 3... Nf6 {[%clk 1:31:12]} 4. g3 {[%clk
1:30:44]} 4... Bxf3 {[%clk 1:31:22]} 5. exf3 {[%clk 1:31:06]} 5... e6 {[%clk
1:31:39]} 6. Bg2 {[%clk 1:31:06]} 6... c6 {[%clk 1:31:47]} 7. O-O {[%clk
1:31:17]} 7... d5 {[%clk 1:30:30]} 8. Qc2 {[%clk 1:29:11]} 8... Nbd7 {[%clk
1:23:10]} 9. f4 {[%clk 1:24:34]} 9... g6 {[%clk 1:12:08]} 10. Nd2 {[%clk
1:23:10]} 10... Bg7 {[%clk 1:07:43]} 11. Nf3 {[%clk 1:20:57]} 11... O-O {[%clk
1:02:58]} 12. Ne5 {[%clk 1:18:53]} 12... Qc7 {[%clk 0:59:51]} 13. cxd5 {[%clk
1:15:42]} 13... Nxe5 {[%clk 0:59:03]} 14. d6 {[%clk 1:13:20]} 14... Qd7 {[%clk
0:59:20]} 15. fxe5 {[%clk 1:11:00]} 15... Nd5 {[%clk 0:59:37]} 16. f4 {[%clk
1:10:24]} 16... Rac8 {[%clk 0:58:54]} 17. Bxd5 {[%clk 1:03:28]} 17... exd5
{[%clk 0:51:18]} 18. Be3 {[%clk 0:53:59]} 18... c5 {[%clk 0:49:46]} 19. Qd2
{[%clk 0:47:24]} 19... c4 {[%clk 0:38:48]} 20. Qg2 {[%clk 0:43:50]} 20... Qe6
{[%clk 0:36:33]} 21. Rac1 {[%clk 0:41:13]} 21... a5 {[%clk 0:27:09]} 22. a3
{[%clk 0:35:26]} 22... f5 {[%clk 0:16:36]} 23. Qc2 {[%clk 0:32:54]} 23... b5
{[%clk 0:14:34]} 24. Bd2 {[%clk 0:31:16]} 24... Ra8 {[%clk 0:13:53]} 25. Kg2
{[%clk 0:29:59]} 25... Rfe8 {[%clk 0:09:45]} 26. Rf3 {[%clk 0:27:57]} 26... Reb8
{[%clk 0:08:51]} 27. Qd1 {[%clk 0:25:48]} 27... Ra6 {[%clk 0:06:59]} 28. Qe1
{[%clk 0:25:15]} 28... Rba8 {[%clk 0:07:18]} 29. Qd1 {[%clk 0:21:28]} 29... Kf7
{[%clk 0:05:21]} 30. Rf2 {[%clk 0:21:33]} 30... h5 {[%clk 0:05:31]} 31. h3
{[%clk 0:21:39]} 31... Rb6 {[%clk 0:05:04]} 32. g4 {[%clk 0:20:36]} 32... hxg4
{[%clk 0:04:27]} 33. hxg4 {[%clk 0:20:58]} 33... Rbb8 {[%clk 0:04:40]} 34. Qe2
{[%clk 0:19:22]} 34... b4 {[%clk 0:03:35]} 35. axb4 {[%clk 0:17:14]} 35... axb4
{[%clk 0:03:58]} 36. Qe1 {[%clk 0:16:54]} 36... fxg4 {[%clk 0:03:29]} 37. Bxb4
{[%clk 0:17:02]} 37... Rh8 {[%clk 0:03:51]} 38. Qe2 {[%clk 0:14:33]} 38... g3
{[%clk 0:04:09]} 39. f5 {[%clk 0:14:06]} 39... gxf5 {[%clk 0:04:34]} 40. Kxg3
{[%clk 0:12:50]} 40... Qg6+ {[%clk 0:04:58]} 0-1

[Variant "Standard"]
[Site "Europe Echecs"]